Cogmind - Beta 14 @@@ ROGUE MODE // 2024.10.01 @ 19:23:46 Player: BionicBot Result: Destroyed by G-47 Trooper with Particle Gun Performance ------------- Evolutions (1) 500 Regions Visited (2) 400 Robots Destroyed (72) 360 Value Destroyed (1768) 1768 Prototype IDs (8) 160 Alien Tech Used (0) 0 Bonus (215) 215 TOTAL SCORE: 3403 Bonus ------- High Alert Combat Kills 215 Cogmind --------- Core Integrity 0/400 Matter 300/300 Energy 100/100 System Corruption 11% Temperature Cool (9) Movement Core (2350) Ox46 Location -9/Materials Parts ------- > --- POWER (1) -------- (None) > --- PROPULSION (3) --- (None) > --- UTILITY (3) ------ Cargo Storage Unit > --- WEAPON (2) ------- (None) > --- INVENTORY (30) --- Improved Flight Unit Improved Flight Unit Improved Flight Unit Improved Flight Unit Improved Flight Unit Medium Storage Unit Structural Scanner Improved Sensor Array Hacking Suite Hacking Suite Hacking Suite Hacking Suite Spread Laser Grenade Launcher Heavy Hammer Peak State ------------ > --- POWER ------------ Heavy Ion Engine > --- PROPULSION ------- Light Treads Light Treads Light Treads > --- UTILITY ---------- Improved Heat Sink Medium Storage Unit Improved Light Armor Plating > --- WEAPON ----------- Advanced Beam Cannon Improved Assault Rifle > --- INVENTORY -------- High-capacity Battery Structural Scanner Improved Sensor Array Seismic Detector Spread Laser Heavy Assault Rifle Light Cannon Grenade Launcher Datajack Heavy Hammer [Rating: 20] Favorites ----------- Power Ion Engine Engine Ion Engine Propulsion Light Treads Treads Light Treads Leg Aluminum Leg Flight Unit Improved Flight Unit Utility Medium Storage Unit Device Improved Heat Sink Storage Medium Storage Unit Protection Power Shielding Weapon Light Cannon Energy Gun Improved Medium Laser Energy Cannon Advanced Beam Cannon Ballistic Gun Improved Assault Rifle Ballistic Cannon Light Cannon Impact Weapon Heavy Hammer Build | -11 -10 -9 ------- Run | Yrd Mat Mat Slots Evolved 2 | . . 2 Power . | . . . Propulsion 1 | . . 1 Utility 1 | . . 1 Weapon . | . . . Parts Attached 45 | 8 6 31 Power 4 | 1 . 3 Engine 4 | 1 . 3 Core . | . . . Reactor . | . . . Propulsion 14 | 2 1 11 Treads 12 | 2 1 9 Leg 1 | . . 1 Wheel . | . . . Hover . | . . . Flight 1 | . . 1 Utility 9 | 2 2 5 Device 2 | 1 . 1 Storage 3 | 1 1 1 Processor . | . . . Hackware . | . . . Protection 4 | . 1 3 Artifact . | . . . Weapon 18 | 3 3 12 Energy Gun 8 | 2 . 6 Energy Cannon 3 | . 1 2 Ballistic Gun 2 | 1 . 1 Ballistic Cannon 3 | . 2 1 Launcher . | . . . Special Weapon . | . . . Impact Weapon 2 | . . 2 Slashing Weapon . | . . . Piercing Weapon . | . . . Special Melee Weapon . | . . . Unidentified Prototypes 6 | . . 6 Parts Lost 12 | . 1 11 Power 2 | . . 2 Propulsion 5 | . . 5 Utility 2 | . . 2 Weapon 3 | . 1 2 Highest Loss Streak 7 | . 1 7 To Critical Strikes 1 | . . 1 Average Slot Usage (%) 93 | . 99 90 Engine 12 | . 14 10 Treads 27 | . 28 27 Leg 1 | . . 2 Device 3 | . 1 4 Storage 12 | . 14 11 Protection 12 | . 12 11 Energy Gun 4 | . 3 5 Energy Cannon 4 | . 4 5 Ballistic Gun 5 | . 7 4 Ballistic Cannon 8 | . 12 6 Peak Build Rating 20 | 7 8 20 Average Rating 12 | 5 7 15 On Entrance 5 | . 7 8 Naked Turns . | . . . Heaviest Build 158 | 13 22 158 Greatest Support 60 | 40 40 60 Greatest Overweight (x) 48 | . . 48 Average Overweight (x) . | . . . Largest Inventory Capacity 30 | 8 10 30 Average Capacity 11 | 7 8 13 Most Carried 15 | 3 9 15 Average Carried 9 | 2 7 10 Final Capacity 30 | 8 10 30 Final Carried 15 | 3 9 15 Class Distribution -------------------- 47% | Mutant 42% | Scavenger-Mutant 9% | Hauler-Mutant Dominant Class ---------------- Mutant | -10/Materials Scavenger-Mutant | -9/Materials Resources | -11 -10 -9 ----------- Run | Yrd Mat Mat Matter Collected 1388 | 293 235 860 Remotely . | . . . Salvage Created 2425 | 157 586 1682 Parts 153 | 7 44 102 Haulers Intercepted 6 | . 1 5 Recyclers Shooed 7 | 1 4 2 Parts Field Recycled . | . . . Retrieved Matter . | . . . Parts Self-Destructed . | . . . Prevented . | . . . Kills | -11 -10 -9 ------- Run | Yrd Mat Mat Combat Hostiles Destroyed 51 | . 14 37 Guns 17 | . 5 12 Cannons 34 | . 9 25 Classes Destroyed 11 | 2 5 4 Worker 2 | . 1 1 Builder 2 | . . 2 Tunneler 4 | 4 . . Hauler 6 | . 1 5 Recycler 4 | 1 1 2 Watcher 3 | . 2 1 Swarmer 11 | . 3 8 Grunt 28 | . 11 17 Brawler 1 | . . 1 Duelist 1 | . . 1 Sentry 10 | . . 10 Best Kill Streak 7 | 4 3 7 Combat Bots Only 4 | . 3 4 Max Kills in Single Turn 2 | 1 1 2 Gunslinging . | . . . Exploded . | . . . Melee . | . . . Uniques/NPCs Destroyed . | . . . Combat | -11 -10 -9 -------- Run | Yrd Mat Mat Hostile Shots Fired 282 | . 71 211 Missed 61 | . 17 44 Damage Taken 2877 | . 646 2231 Core 465 | . 62 403 Absorbed by Shields . | . . . Redirected to Shielding 42 | . 15 27 Core Remaining (%) 87 | 100 75 . Volleys Fired 203 | 13 77 113 Largest 2 | 2 2 2 Hottest 124 | 60 80 124 Shots Fired 387 | 26 140 221 Gun 191 | 26 73 92 Cannon 196 | . 67 129 Launcher . | . . . Special . | . . . Kinetic 261 | 13 92 156 Thermal 126 | 13 48 65 Explosive . | . . . Electromagnetic . | . . . Robot Hit Streak 16 | 8 8 16 Robot Miss Streak 7 | 2 7 5 Penetration Max . | . . . Secondary Targets . | . . . Shots Hit Robots 247 | 18 82 147 Core Hits 99 | 8 33 58 Critical Kills . | . . . Critical Parts Destroyed . | . . . Critical Strikes 7 | . . 7 Burn 4 | . . 4 Blast 3 | . . 3 Melee Attacks 3 | . . 3 Impact 3 | . . 3 Slashing . | . . . Piercing . | . . . Sneak Attacks . | . . . Combat Hostiles . | . . . Follow-up Attacks . | . . . Damage Inflicted 3848 | 167 1051 2630 Guns 1773 | 167 445 1161 Cannons 2055 | . 595 1460 Explosions . | . . . Melee . | . . . Ramming 20 | . 11 9 Kinetic 2464 | 61 540 1863 Thermal 1364 | 106 500 758 Explosive . | . . . Electromagnetic . | . . . Impact . | . . . Slashing . | . . . Piercing . | . . . Highest Corruption 11 | . . 11 Average Corruption 9 | . . 9 Corruption Purged . | . . . Corruption Blocked . | . . . Effects 1 | . . 1 Heat Flow Errors 1 | . . 1 Overload Shots . | . . . Overflow Damage 42 | . 5 37 Projectiles 42 | . 5 37 Explosions . | . . . Melee . | . . . Knockbacks 13 | . 2 11 Impact . | . . . Kinetic 12 | . 2 10 Secondary 1 | . . 1 Self-Inflicted Damage . | . . . Shots . | . . . Rammed 3 | . 2 1 Targets Rammed 5 | . 3 2 Kicked . | . . . Crushed 2 | . 1 1 Highest Temperature 463 | 60 268 463 Average Temperature 74 | 32 83 72 Received Heat Transfer 957 | . 327 630 Effects 2 | . . 2 Interference 2 | . . 2 Siege Activations . | . . . Robots Corrupted . | . . . Combat Hostiles . | . . . Parts Fried . | . . . Impact Corruptions . | . . . Robots Melted . | . . . Combat Hostiles . | . . . Parts Melted 4 | 1 1 2 Heat Transferred 3103 | 250 1077 1776 Parts Sabotaged . | . . . Parts Stolen . | . . . Parts Stripped . | . . . Power Chain Reactions . | . . . Alert | -11 -10 -9 ------- Run | Yrd Mat Mat Peak Influence 783 | 25 184 783 Initial 46 | . 16 46 Average 331 | 9 114 481 Maximum Alert Level 3 | . . 3 Low Security (%) 45 | 100 100 9 Level 1 16 | . . 27 Level 2 24 | . . 41 Level 3 12 | . . 21 Level 4 . | . . . Level 5 . | . . . High Security . | . . . Max Security . | . . . Squads Dispatched 11 | . 4 7 Investigation 3 | . 2 1 Extermination . | . . . Reinforcement 7 | . 2 5 Assault 1 | . . 1 Garrison . | . . . Intercept . | . . . Searches Triggered . | . . . Construction Impeded 1 | . . 1 Haulers Reinforced . | . . . Active Scanning Responses . | . . . Cargo Convoy Interrupts . | . . . Stealth | -11 -10 -9 --------- Run | Yrd Mat Mat Distress Signals 8 | . 1 7 Communications Jammed . | . . . Distress Signals . | . . . Times Spotted 92 | . 26 66 Peak Tracking Total 8 | . 3 8 Tactical Retreats 2 | . . 2 Traps | -11 -10 -9 ------- Run | Yrd Mat Mat Traps Triggered 3 | . 2 1 Indirectly . | . . . Trap Hack Attempts . | . . . Triggered . | . . . Disarmed . | . . . Reprogrammed . | . . . Reused . | . . . Traps Extracted . | . . . Installed . | . . . Triggered . | . . . Machines | -11 -10 -9 ---------- Run | Yrd Mat Mat Machines Disabled 1 | . . 1 Max in Single Turn 1 | . . 1 Machines Repaired . | . . . Machines Dismantled . | . . . Machines Sabotaged . | . . . Overloaded Fab Kills . | . . . Hacking | -11 -10 -9 --------- Run | Yrd Mat Mat Machines Accessed 14 | . 5 9 Terminals 14 | . 5 9 Fabricators . | . . . Repair Stations . | . . . Recycling Units . | . . . Scanalyzers . | . . . Garrison Access . | . . . Total Hacks 39 | . 12 27 Successful 26 | . 10 16 Failed 13 | . 2 11 Catastrophic . | . . . Database Lockouts . | . . . Manual 32 | . 11 21 Terminals 39 | . 12 27 Fabricators . | . . . Repair Stations . | . . . Recycling Units . | . . . Scanalyzers . | . . . Garrison Access . | . . . Terminal Hacks 6 | . 1 5 Prototype ID Bank 2 | . . 2 Branch Access Points 1 | . 1 . Emergency Access Points 1 | . . 1 Terminal Index 1 | . . 1 Locate Traps 1 | . . 1 Fabricator Hacks . | . . . Repair Station Hacks . | . . . Recycling Unit Hacks . | . . . Scanalyzer . | . . . Garrison Access Hacks . | . . . Unauthorized Hacks 20 | . 9 11 Terminals 20 | . 9 11 Botnet 7 | . 4 3 Operators 1 | . . 1 Skim 12 | . 5 7 Fabricators . | . . . Repair Stations . | . . . Recycling Units . | . . . Scanalyzers . | . . . Garrison Access . | . . . Data Cores Recovered . | . . . Used . | . . . Hacking Detections 13 | . 5 8 Full Trace Events . | . . . Feedback Events . | . . . Feedback Blocked . | . . . Robot Schematics Acquired . | . . . Robots Built . | . . . Authchips . | . . . Time . | . . . Total Robot Build Rating . | . . . Part Schematics Acquired . | . . . Parts Built . | . . . Authchips . | . . . Time . | . . . Total Part Build Rating . | . . . Parts Repaired . | . . . Time . | . . . Parts Recycled . | . . . Recycled Matter . | . . . Retrieved Matter . | . . . Retrieved Components . | . . . Parts Scanalyzed . | . . . Part Schematics Acquired . | . . . Parts Damaged . | . . . Bothacking | -11 -10 -9 ------------ Run | Yrd Mat Mat Used RIF Installer . | . . . Robots Hacked . | . . . Non-combat . | . . . Combat . | . . . Robot Hacks Applied . | . . . Relay Couplers Released . | . . . Fabnet Peak Effective % . | . . . Robots Rewired . | . . . Allies Hacked . | . . . Hacks Repelled . | . . . Allies | -11 -10 -9 -------- Run | Yrd Mat Mat Total Allies . | . . . Largest Group . | . . . Highest-Rated Group . | . . . Highest-Rated Ally . | . . . Total Orders . | . . . Ally Attacks . | . . . Total Damage . | . . . Kills . | . . . Allies Corrupted . | . . . Allies Melted . | . . . Intel | -11 -10 -9 ------- Run | Yrd Mat Mat Robot Analysis Total . | . . . Derelict Logs Recovered . | . . . Drone Launches . | . . . Drone Recoveries . | . . . Exploration | -11 -10 -9 ------------- Run | Yrd Mat Mat Turns Passed 4077 | 141 1487 2449 Spaces Moved 1808 | 59 762 987 Core 5 | 3 . 2 Treads 1803 | 56 762 985 Legs . | . . . Wheels . | . . . Hover . | . . . Flight . | . . . Fastest Speed 50 | 50 160 160 Average Speed 179 | 154 160 196 Slowest Speed 2450 | 160 160 2450 Overloaded Moves . | . . . Propulsion Burnouts . | . . . Robots Hopped . | . . . Cave-ins Triggered . | . . . Exploration Rate (%) 63 | 5 98 86 Regions Visited 2 Branch Regions . Pre-discovered Areas 2 | . . 2 Known Exits Taken . | . . . Unknown Exits Taken 2 | 1 1 . Scrap Searched . | . . . Spaces Dug 2 | . . 2 Terrain Destroyed 2 | . . 2 Melee 2 | . . 2 Projectile . | . . . AOE . | . . . Terrain Rammed . | . . . Walls Destroyed . | . . . Machines Disabled . | . . . Actions | -11 -10 -9 --------- Run | Yrd Mat Mat Total 2266 | 82 901 1283 Wait 137 | . 41 96 Move 1806 | 58 761 987 Hop . | . . . Pick Up 27 | 2 7 18 Fast Attach 27 | 8 3 16 Attach 3 | . . 3 Detach 7 | 1 1 5 Swap 15 | . 3 12 Drop 33 | . 5 28 Fire 203 | 13 77 113 Melee 3 | . . 3 Ram . | . . . Kick . | . . . Crush 5 | . 3 2 Escape Stasis . | . . . Rewire . | . . . Trap . | . . . Miscellaneous . | . . . Route ------- -11/Scrapyard -10/Materials (discovered 5 exits: *Mat x3 / *Min x2) -9/Materials (discovered 5 exits: *Mat x3 / *Min x2) History --------- Turn | Location | Event 20 | -11/Scrapyard | Discovered new exit (range 15) 142 | -11/Scrapyard | Entered Materials 313 | -10/Materials | Build established: Mutant 464 | -10/Materials | Discovered new exit (range 4) 500 | -10/Materials | Identified exit to Mines 751 | -10/Materials | Discovered new exit (range 12) 1124 | -10/Materials | Discovered new exit (range 9) 1629 | -10/Materials | Entered another Materials area 1629 | -9/Materials | Evolved 2 slots: Propulsion x1, Utility x1 2114 | -9/Materials | Discovered new exit (range 15) 2243 | -9/Materials | Build established: Scavenger-Mutant 2390 | -9/Materials | Discovered new exit (range 15) 2830 | -9/Materials | Identified exit to Mines 2892 | -9/Materials | Identified exit to Materials 2908 | -9/Materials | Loaded intel: 2 recycling unit locations 2913 | -9/Materials | Learned location of Mines (-9) 2916 | -9/Materials | Learned Storage stockpile data 2920 | -9/Materials | Learned 4 Recycling zone layouts 2964 | -9/Materials | Learned location of Zion (-6) 3975 | -9/Materials | Build established: Hauler-Mutant 4029 | -9/Materials | First assault squad dispatched 4054 | -9/Materials | System corruption reached 10% 4062 | -9/Materials | Core integrity fell below 50% 4071 | -9/Materials | Core integrity fell below 20% 4078 | -9/Materials | Destroyed by G-47 Trooper with Particle Gun Last Messages --------------- 04045_ C-30 ARC bursts open, deploying its payload. 04045_ G-47 Trooper unfolds itself. 04045_ B-36 Bruiser unfolds itself. 04045_ I-25 Savior unfolds itself. 04045_ Lgt. Treads destroyed. 04045_ System corrupted by crushing effect (+3). 04047_ Slammed into B-36 Bruiser. 04048_ Imp. Medium Laser destroyed. 04053_ Lgt. Treads destroyed. 04053_ System corrupted by crushing effect (+5). 04053_ Lgt. Armor Plating destroyed. 04053_ System corrupted by crushing effect (+3). 04055_ System corrupted: Heat flow error (+236). 04056_ Adv. Beam Cannon destroyed. 04056_ Critical hit (Burn: +37). 04062_ Lgt. Treads destroyed. 04062_ Critical hit (Burn: +37). 04070_ Knocked back. 04072_ Imp. Ion Engine destroyed. 04074_ Critical hit (Burn: +37). Map ----- +----------------------------------------------------+ | ????## ### ## ##????????????# """ + | | ?????# #?# """" ## #?????????????# """ # | | ?????# #?# """" ## #?????????????# """ # | | ?????# #?# """" ## #?????????????######## | | ?????# #?# ## ##??????????????????# | | ######+########+### #??????????????????# | | # [[[##! =!! #??????????????????# | | # ! *%+!! !!%[ #??????????????????# | | # ==## ###!! #??????????????????# | | # """"" ## #?######???????????######### | | # """"""""" ## #??????????????????# | | # """ """ + #??????????????????# """ "" | | ############## #?????????###??????# "R "" | | ?????????????#=!#??######## ##?????# """ "" | | ?????????????# #??# | #?????# | | ?????????????#%=#??# T | #?????######### | | ?????????????# #??# #?????????????# | | ?????????????# /#??# #?????????????# | | ????########?# #??# """"" #?????????????# | | ????#!! !!#?# #??# """"" #?????????????# | | ????#! !#?# #??# """"" #?????#####???# | | ????# #?# #??# #?????#"""#???# | | ????# ###% ########/###########"T"##### | | ????# i "T" [ | | ????# < bb g % g [[ | | ????# @bgg%% % [[ | | ????####+### #########+##### """" | | ?# ## #??## !%%![ # """" | | ?# ## #??#% %[ # """" | | ?# ## #??## T [[ # | | ?# ## #???# " # | | ?# ## #???# """"/% | | ?# ## #???# """ # | | ?# ## #???# """ ### | | ?# ## #???#! #?# ####### | | ?# ## #???###########?# #???### | | ?######+#/## #??##############+# #??? | | ??????? ## # # # #???" | | ??????? ## + # # #??"" | | ####### ## # # # # """ | | # # ## ##?###### # # | | # # # #??????# # # """ | | # [ # # #??????# # # """ | | # # #[ T #??????# # # """ | | #%// # # #??????# # #?? | | #=// # # #??????#####/##### #####/# | | #=// # ^ ############ | | # + ^ %#[ + | | # # """ %% """ # | | # # ^""" # """ ## ####### | +----------------------------------------------------+ Best States ------------- Heat Dissipation 42 Energy Generation 14 Energy Capacity 280 Matter Stores 300 Matter Capacity 300 Sight Range 16 Terrain Scan Density 10 Armor Coverage 150 Power Shielding 33 Evasion (%) 40 Recoil Reduction 3 Item Schematics ----------------- None Robot Schematics ------------------ None Fabricated ------------ Nothing Alien Tech Used ----------------- None Achievements -------------- None Challenges ------------ None Game ------ Seed BiometalSpliceShredder Manual? 0 Play Time 00:31:46 Cumulative 198.9 hours Start 2024.10.01 @ 18:52:11 End 2024.10.01 @ 19:23:46 Sessions 1 Manual Loads 0 Difficulty Rogue Special Mode None Game No. 151 Rogue 151 Adventurer 0 Explorer 0 Win Type - Total 8 Types 7/0/1/0/0/0/0/0/0 Lore% 52 Gallery% 62 Achievement% 58 Wizard Run 0 Options --------- Layout 0 ASCII 0 Keyboard 1 Movement Numpad Keybinds 0 Fullscreen 2 Font 18/X11 Map View 76x50 Zoom Use 0% Tactical HUD 1 Map Filters NONE Filters NONE Steam 1 RUN: 3e6d25df-c387-48d6-b4bf-39b4b97f2011